'DEPARTMENT_FAMILY,ENTITY,PAYMENT_DATE,EXPENSE_TYPE,EXPENSE_AREA,SUPPLIER,TRANSACTION_NUMBER,AMOUNT,DESCRIPTION
Ministry of Justice,LAA,04/11/2015,512000-Intangible GBV - Additions,VA294-ISD,HOME OFFICE IT,10022,"180,267.00 ",HOIT Testing Services - LAA - Apr-Sep 15
Ministry of Justice,LAA,04/11/2015,512000-Intangible GBV - Additions,VA294-ISD,HOME OFFICE IT,10022,"36,053.40 ",HOIT Testing Services - LAA - Apr-Sep 15
Ministry of Justice,LAA,04/11/2015,212001-Agency staff,VA403-IDP - Infrastructure,TRUEPENNY PEOPLE UK LTD,2003228,"58,240.75 ",OPA Technical Specialists - Director
Ministry of Justice,LAA,04/11/2015,212001-Agency staff,VA403-IDP - Infrastructure,TRUEPENNY PEOPLE UK LTD,2003228,"11,648.15 ",OPA Technical Specialists - Director
Ministry of Justice,LAA,11/11/2015,512000-Intangible GBV - Additions,VA403-IDP - Infrastructure,CAPGEMINI UK PLC,2003252,"26,522.00 ",Digital Service Framework Agreement (DSF) 
Ministry of Justice,LAA,11/11/2015,512000-Intangible GBV - Additions,VA403-IDP - Infrastructure,CAPGEMINI UK PLC,2003252,"5,304.40 ",Digital Service Framework Agreement (DSF) 
Ministry of Justice,LAA,11/11/2015,224000-Staff travel and other,VA293-Finance Directorate,REDFERN TRAVEL LTD,2003308,"112,278.43 ",Travel Costs 1st Sept 2015 to 31st December 2015
Ministry of Justice,LAA,11/11/2015,224000-Staff travel and other,VA293-Finance Directorate,REDFERN TRAVEL LTD,2003308,742.45 ,Travel Costs 1st Sept 2015 to 31st December 2015
Ministry of Justice,LAA,11/11/2015,224000-Staff travel and other,VA293-Finance Directorate,REDFERN TRAVEL LTD,2003308,148.49 ,Travel Costs 1st Sept 2015 to 31st December 2015
Ministry of Justice,LAA,11/11/2015,265000-IT & Telecommunications,VA294-ISD,WILLIAMS LEA LTD,2003328,"26,334.64 ",Annual LAA printing & document production costs
Ministry of Justice,LAA,18/11/2015,512000-Intangible GBV - Additions,VA403-IDP - Infrastructure,CAPGEMINI UK PLC,2003356,"144,893.64 ",Digital Service Framework Agreement (DSF)
Ministry of Justice,LAA,18/11/2015,512000-Intangible GBV - Additions,VA403-IDP - Infrastructure,CAPGEMINI UK PLC,2003356,"28,978.73 ",Digital Service Framework Agreement (DSF)
Ministry of Justice,LAA,18/11/2015,512000-Intangible GBV - Additions,VA403-IDP - Infrastructure,CAPGEMINI UK PLC,2003356,"28,509.00 ",Digital Service Framework Agreement (DSF) 
Ministry of Justice,LAA,18/11/2015,512000-Intangible GBV - Additions,VA403-IDP - Infrastructure,CAPGEMINI UK PLC,2003356,"5,701.80 ",Digital Service Framework Agreement (DSF) 
Ministry of Justice,LAA,18/11/2015,265000-IT & Telecommunications,VA294-ISD,REDCENTRIC SOLUTIONS LTD,2003410,"62,542.23 ",RedCentric BAU Monthly (Jun-Mar 16) 
Ministry of Justice,LAA,18/11/2015,265000-IT & Telecommunications,VA294-ISD,REDCENTRIC SOLUTIONS LTD,2003410,"44,023.43 ",RedCentric BAU Monthly (Jun-Mar 16) 
Ministry of Justice,LAA,18/11/2015,265000-IT & Telecommunications,VA294-ISD,REDCENTRIC SOLUTIONS LTD,2003410,"12,508.45 ",RedCentric BAU Monthly (Jun-Mar 16) 
Ministry of Justice,LAA,18/11/2015,265000-IT & Telecommunications,VA294-ISD,REDCENTRIC SOLUTIONS LTD,2003410,"8,804.69 ",RedCentric BAU Monthly (Jun-Mar 16) 
Ministry of Justice,LAA,18/11/2015,223000-Other Expenditure,VA395-National Courts Team,ROSSENDALES LTD,2003411,"53,200.00 ",Enforcement costs for CCMT 
Ministry of Justice,LAA,18/11/2015,223000-Other Expenditure,VA395-National Courts Team,ROSSENDALES LTD,2003411,"44,488.50 ",Enforcement costs for CCMT 
Ministry of Justice,LAA,25/11/2015,223000-Other Expenditure,VA118-Legal Aid Transformation,BOND DICKINSON LLP,2003450,"74,000.00 ",Internal legal support
Ministry of Justice,LAA,25/11/2015,265000-IT & Telecommunications,VA192-Head of Serv Dev & Central Com,BRAVO SOLUTION UK LTD,2003451,"40,000.00 ",BravoSolution Vendor and Supplier Mgt and Resourcing Management Licences licence from 1st July 2015 and management support for 24 months
Ministry of Justice,LAA,25/11/2015,265000-IT & Telecommunications,VA192-Head of Serv Dev & Central Com,BRAVO SOLUTION UK LTD,2003451,"8,000.00 ",BravoSolution Vendor and Supplier Mgt and Resourcing Management Licences licence from 1st July 2015 and management support for 24 months
Ministry of Justice,LAA,25/11/2015,265000-IT & Telecommunications,"VA393-Operations, Civil",NORTHGATE PUBLIC SERVICES (UK) LTD,2003480,"29,382.58 ","Managed Service per month, Network Connection per month & EDRM Software per month "
Ministry of Justice,LAA,02/11/2015,Civil Representation,Legal Aid Fund,PAUL DODDS SOLICITORS,100000045285RECLB527,"34,108.05 ",Legal Aid Payment Civil Representation
Ministry of Justice,LAA,04/11/2015,Civil Representation,Legal Aid Fund,KIERAN CLARKE GREEN,141990984,"37,708.73 ",Legal Aid Payment Civil Representation
Ministry of Justice,LAA,04/11/2015,Civil Representation,Legal Aid Fund,JOANNE PORTER,142087772,"27,583.31 ",Legal Aid Payment Civil Representation
Ministry of Justice,LAA,04/11/2015,Civil Representation,Legal Aid Fund,SARAH E BLACKMORE,141842034,"36,201.60 ",Legal Aid Payment Civil Representation
Ministry of Justice,LAA,04/11/2015,Civil Representation,Legal Aid Fund,TARYN J LEE QC,141842037,"43,286.40 ",Legal Aid Payment Civil Representation
Ministry of Justice,LAA,04/11/2015,Crime Higher,Legal Aid Fund,L JOHN HURLOCK,142038227,"28,006.08 ",Legal Aid Payment Crime Higher
Ministry of Justice,LAA,04/11/2015,Civil Representation,Legal Aid Fund,PENELOPE A M HOWE,142030812,"34,214.40 ",Legal Aid Payment Civil Representation
Ministry of Justice,LAA,04/11/2015,Crime Higher,Legal Aid Fund,BLINNE NI GHRALAIGH,142096986,"28,649.54 ",Legal Aid Payment Crime Higher
Ministry of Justice,LAA,04/11/2015,Civil Representation,Legal Aid Fund,RACHEL M GILLMAN,141516434,"43,837.20 ",Legal Aid Payment Civil Representation
Ministry of Justice,LAA,04/11/2015,Crime Higher,Legal Aid Fund,LEIGHTON A HUGHES,142039208,"57,331.55 ",Legal Aid Payment Crime Higher
Ministry of Justice,LAA,04/11/2015,Civil Representation,Legal Aid Fund,H JONATHAN FURNESS QC,142029334,"27,969.30 ",Legal Aid Payment Civil Representation
Ministry of Justice,LAA,04/11/2015,Civil Representation,Legal Aid Fund,LINDSAY E ADAMS,142068492,"33,669.00 ",Legal Aid Payment Civil Representation
Ministry of Justice,LAA,04/11/2015,Crime Higher,Legal Aid Fund,P NICHOLAS D KENNEDY,142039069,"38,428.58 ",Legal Aid Payment Crime Higher
Ministry of Justice,LAA,04/11/2015,Crime Higher,Legal Aid Fund,MICHAEL J VERE-HODGE,142097681,"33,107.27 ",Legal Aid Payment Crime Higher
Ministry of Justice,LAA,04/11/2015,Civil Representation,Legal Aid Fund,STEFANO NUVOLONI,142045650,"39,626.74 ",Legal Aid Payment Civil Representation
Ministry of Justice,LAA,04/11/2015,Civil Representation,Legal Aid Fund,JULIE A STATHER,141990258,"34,615.32 ",Legal Aid Payment Civil Representation
Ministry of Justice,LAA,04/11/2015,Crime Higher,Legal Aid Fund,SARAH L ELLIS,142097136,"31,971.96 ",Legal Aid Payment Crime Higher
Ministry of Justice,LAA,04/11/2015,Crime Higher,Legal Aid Fund,JSP LAW LTD,142051688,"52,722.96 ",Legal Aid Payment Crime Higher
Ministry of Justice,LAA,04/11/2015,Crime Higher,Legal Aid Fund,L P EVANS SOLICITORS,142076046,"98,602.86 ",Legal Aid Payment Crime Higher
Ministry of Justice,LAA,04/11/2015,Crime Higher,Legal Aid Fund,LINCOLNS SOLICITORS,142075934,"85,711.30 ",Legal Aid Payment Crime Higher
Ministry of Justice,LAA,04/11/2015,Crime Higher,Legal Aid Fund,THE CENTRAL LAW PRACTICE,142076017,"107,574.07 ",Legal Aid Payment Crime Higher
Ministry of Justice,LAA,04/11/2015,Crime Higher,Legal Aid Fund,M K LAW SOLICITORS LTD,142038154,"107,970.13 ",Legal Aid Payment Crime Higher
Ministry of Justice,LAA,04/11/2015,Crime Higher,Legal Aid Fund,CHIVERS SOLICITORS,142075961,"57,757.96 ",Legal Aid Payment Crime Higher
Ministry of Justice,LAA,04/11/2015,Crime Higher,Legal Aid Fund,M R LAWS,142076121,"80,850.32 ",Legal Aid Payment Crime Higher
Ministry of Justice,LAA,04/11/2015,Crime Higher,Legal Aid Fund,ENNON & CO,142076109,"44,301.07 ",Legal Aid Payment Crime Higher
Ministry of Justice,LAA,04/11/2015,Civil Representation,Legal Aid Fund,MAKIN DIXON SOLICITORS LTD,142047240,"32,649.72 ",Legal Aid Payment Civil Representation
Ministry of Justice,LAA,04/11/2015,Crime Higher,Legal Aid Fund,WOODS SOLICITORS,142037869,"58,953.35 ",Legal Aid Payment Crime Higher
Ministry of Justice,LAA,04/11/2015,Crime Higher,Legal Aid Fund,STEVEN YOUNG & CO INC ROWBIS,142037817,"69,562.82 ",Legal Aid Payment Crime Higher
Ministry of Justice,LAA,04/11/2015,Civil Representation,Legal Aid Fund,JWP SOLICITORS,3000000353920020,"35,640.00 ",Legal Aid Payment Civil Representation
Ministry of Justice,LAA,04/11/2015,Civil Representation,Legal Aid Fund,RIDLEY & HALL LEGAL LTD,142041326,"87,790.47 ",Legal Aid Payment Civil Representation
Ministry of Justice,LAA,04/11/2015,Crime Higher,Legal Aid Fund,CARTWRIGHT KING SOLICITORS,142096883,"54,497.60 ",Legal Aid Payment Crime Higher
Ministry of Justice,LAA,04/11/2015,Crime Lower,Legal Aid Fund,HCB CLIVE SHEPHERD,142091017,"41,969.17 ",Legal Aid Payment Crime Lower
Ministry of Justice,LAA,04/11/2015,Crime Higher,Legal Aid Fund,FARADAYS SOLICITORS LTD,142038330,"36,643.13 ",Legal Aid Payment Crime Higher
Ministry of Justice,LAA,04/11/2015,Crime Higher,Legal Aid Fund,FARADAYS SOLICITORS LTD,142097544,"35,597.46 ",Legal Aid Payment Crime Higher
Ministry of Justice,LAA,04/11/2015,Crime Higher,Legal Aid Fund,FORBES SOLICITORS,142051778,"36,490.32 ",Legal Aid Payment Crime Higher
Ministry of Justice,LAA,04/11/2015,Civil Representation,Legal Aid Fund,ROBINSONS SOLICITORS.,141952441,"25,239.60 ",Legal Aid Payment Civil Representation
Ministry of Justice,LAA,04/11/2015,Civil Representation,Legal Aid Fund,FREETHS LLP,142101609,"43,214.63 ",Legal Aid Payment Civil Representation
Ministry of Justice,LAA,04/11/2015,Civil Representation,Legal Aid Fund,JMW SOLICITORS LLP,142087037,"25,593.06 ",Legal Aid Payment Civil Representation
Ministry of Justice,LAA,04/11/2015,Crime Higher,Legal Aid Fund,MANDLA BHOMRA & CO,142075921,"89,975.11 ",Legal Aid Payment Crime Higher
Ministry of Justice,LAA,04/11/2015,Civil Representation,Legal Aid Fund,STEPHENSONS SOLICITORS LLP,141887069,"27,827.77 ",Legal Aid Payment Civil Representation
Ministry of Justice,LAA,04/11/2015,Crime Higher,Legal Aid Fund,STEPHENSONS SOLICITORS LLP,142075986,"89,975.11 ",Legal Aid Payment Crime Higher
Ministry of Justice,LAA,04/11/2015,Crime Higher,Legal Aid Fund,PEACH GREY & CO,142052376,"32,865.91 ",Legal Aid Payment Crime Higher
Ministry of Justice,LAA,04/11/2015,Crime Higher,Legal Aid Fund,PEACH GREY & CO,142076070,"89,975.11 ",Legal Aid Payment Crime Higher
Ministry of Justice,LAA,04/11/2015,Civil Representation,Legal Aid Fund,BRENDAN FLEMING SOLICITORS,142105947,"25,250.02 ",Legal Aid Payment Civil Representation
Ministry of Justice,LAA,04/11/2015,Crime Higher,Legal Aid Fund,GARSTANGS BURROWS BUSSIN LLP,142039113,"29,664.55 ",Legal Aid Payment Crime Higher
Ministry of Justice,LAA,04/11/2015,Crime Higher,Legal Aid Fund,J D SPICER ZEB,142037812,"32,398.94 ",Legal Aid Payment Crime Higher
Ministry of Justice,LAA,04/11/2015,Crime Higher,Legal Aid Fund,J D SPICER ZEB,142097269,"41,590.20 ",Legal Aid Payment Crime Higher
Ministry of Justice,LAA,04/11/2015,Crime Higher,Legal Aid Fund,MARTIN MURRAY & ASSOCIATES,142076118,"45,543.24 ",Legal Aid Payment Crime Higher
Ministry of Justice,LAA,04/11/2015,Crime Higher,Legal Aid Fund,SONN MACMILLAN WALKER LTD,142098159,"48,494.48 ",Legal Aid Payment Crime Higher
Ministry of Justice,LAA,04/11/2015,Crime Higher,Legal Aid Fund,CLAUDE HORNBY & COX,142076114,"69,194.19 ",Legal Aid Payment Crime Higher
Ministry of Justice,LAA,04/11/2015,Crime Higher,Legal Aid Fund,LIONEL BLACKMAN SOLICITORS,142064143,"47,718.59 ",Legal Aid Payment Crime Higher
Ministry of Justice,LAA,04/11/2015,Crime Higher,Legal Aid Fund,KAIM TODNER SOLICITORS LIMITED,142052826,"28,337.78 ",Legal Aid Payment Crime Higher
Ministry of Justice,LAA,04/11/2015,Crime Higher,Legal Aid Fund,STOKOE PARTNERSHIP,142057397,"173,261.96 ",Legal Aid Payment Crime Higher
Ministry of Justice,LAA,04/11/2015,Civil Representation,Legal Aid Fund,ALDRIDGE BROWNLEE SOLICITORS LLP,142088658,"27,379.14 ",Legal Aid Payment Civil Representation
Ministry of Justice,LAA,04/11/2015,Crime Higher,Legal Aid Fund,IMRAN KHAN & PARTNERS,142038214,"60,682.25 ",Legal Aid Payment Crime Higher
Ministry of Justice,LAA,04/11/2015,Crime Higher,Legal Aid Fund,O'KEEFFE SOLICITORS,142076113,"87,656.83 ",Legal Aid Payment Crime Higher
Ministry of Justice,LAA,04/11/2015,Crime Higher,Legal Aid Fund,JOSHUA J G NORMANTON,142075818,"38,111.70 ",Legal Aid Payment Crime Higher
Ministry of Justice,LAA,04/11/2015,Crime Higher,Legal Aid Fund,TUCKERS SOLICITORS LLP,142037913,"54,651.89 ",Legal Aid Payment Crime Higher
Ministry of Justice,LAA,04/11/2015,Crime Higher,Legal Aid Fund,PETER A FINNIGAN QC,142070631,"115,364.82 ",Legal Aid Payment Crime Higher
Ministry of Justice,LAA,04/11/2015,Crime Higher,Legal Aid Fund,PETER A FINNIGAN QC,142070635,"40,659.90 ",Legal Aid Payment Crime Higher
Ministry of Justice,LAA,04/11/2015,Crime Higher,Legal Aid Fund,PIETER D R BRIEGEL,142097448,"45,446.42 ",Legal Aid Payment Crime Higher
Ministry of Justice,LAA,04/11/2015,Crime Higher,Legal Aid Fund,LAWRENCE J MCNULTY,142097507,"46,120.68 ",Legal Aid Payment Crime Higher
Ministry of Justice,LAA,04/11/2015,Crime Higher,Legal Aid Fund,T S LAW LTD,142076108,"82,529.10 ",Legal Aid Payment Crime Higher
Ministry of Justice,LAA,04/11/2015,Crime Higher,Legal Aid Fund,USMANI KING SOLICITORS [ADVOCATE],142037907,"34,229.16 ",Legal Aid Payment Crime Higher
Ministry of Justice,LAA,04/11/2015,Crime Higher,Legal Aid Fund,USMANI KING SOLICITORS [ADVOCATE],142038834,"32,610.36 ",Legal Aid Payment Crime Higher
Ministry of Justice,LAA,04/11/2015,Civil Representation,Legal Aid Fund,VICTORIA J EDMONDS,142087287,"77,760.00 ",Legal Aid Payment Civil Representation
Ministry of Justice,LAA,04/11/2015,Crime Higher,Legal Aid Fund,SANJEEV M SHARMA,142037988,"36,331.20 ",Legal Aid Payment Crime Higher
Ministry of Justice,LAA,04/11/2015,Crime Higher,Legal Aid Fund,KARINA ARDEN,142097092,"49,156.08 ",Legal Aid Payment Crime Higher
Ministry of Justice,LAA,04/11/2015,Civil Representation,Legal Aid Fund,BARBARA W CONNOLLY,142031334,"31,341.14 ",Legal Aid Payment Civil Representation
Ministry of Justice,LAA,04/11/2015,Crime Higher,Legal Aid Fund,PETER J M DAHLSEN,142051922,"28,764.28 ",Legal Aid Payment Crime Higher
Ministry of Justice,LAA,04/11/2015,Civil Representation,Legal Aid Fund,SASHA WATKINSON,142031347,"27,907.20 ",Legal Aid Payment Civil Representation
Ministry of Justice,LAA,04/11/2015,Crime Higher,Legal Aid Fund,MICHAEL A HICK,142104415,"52,000.00 ",Legal Aid Payment Crime Higher
Ministry of Justice,LAA,04/11/2015,Civil Representation,Legal Aid Fund,FRANCES J JUDD,142030646,"34,927.20 ",Legal Aid Payment Civil Representation
Ministry of Justice,LAA,04/11/2015,Crime Higher,Legal Aid Fund,MARTIN RUTHERFORD,142097057,"26,971.06 ",Legal Aid Payment Crime Higher
Ministry of Justice,LAA,04/11/2015,Crime Higher,Legal Aid Fund,PAUL M MENDELLE QC,142052360,"65,934.46 ",Legal Aid Payment Crime Higher
Ministry of Justice,LAA,04/11/2015,Crime Higher,Legal Aid Fund,NIGEL SANGSTER QC,142076724,"25,991.26 ",Legal Aid Payment Crime Higher
Ministry of Justice,LAA,04/11/2015,Legal Help,Legal Aid Fund,DH LAW LTD,141991843,"31,167.00 ",Legal Aid Payment Legal Help
Ministry of Justice,LAA,04/11/2015,Crime Higher,Legal Aid Fund,UK LAW,142038004,"38,195.51 ",Legal Aid Payment Crime Higher
Ministry of Justice,LAA,04/11/2015,Civil Representation,Legal Aid Fund,BLACKWHITE SOLICITORS,142055708,"25,928.00 ",Legal Aid Payment Civil Representation
Ministry of Justice,LAA,04/11/2015,Crime Higher,Legal Aid Fund,STOKOE PARTNERSHIP,142076122,"74,329.71 ",Legal Aid Payment Crime Higher
Ministry of Justice,LAA,04/11/2015,Crime Higher,Legal Aid Fund,LAWRENCE J C SELBY,142051846,"37,385.03 ",Legal Aid Payment Crime Higher
Ministry of Justice,LAA,04/11/2015,Crime Higher,Legal Aid Fund,CITY LAW CHAMBERS,142076064,"75,124.80 ",Legal Aid Payment Crime Higher
Ministry of Justice,LAA,04/11/2015,Crime Higher,Legal Aid Fund,SVS SOLICITORS,142075988,"85,711.30 ",Legal Aid Payment Crime Higher
Ministry of Justice,LAA,04/11/2015,Crime Higher,Legal Aid Fund,MAGUIRES SOLICITORS LTD,142075886,"46,819.54 ",Legal Aid Payment Crime Higher
Ministry of Justice,LAA,04/11/2015,Crime Higher,Legal Aid Fund,LLOYDS PR SOLICITORS,142051282,"33,059.04 ",Legal Aid Payment Crime Higher
Ministry of Justice,LAA,04/11/2015,Crime Higher,Legal Aid Fund,LLOYDS PR SOLICITORS,142052380,"25,774.26 ",Legal Aid Payment Crime Higher
Ministry of Justice,LAA,04/11/2015,Crime Higher,Legal Aid Fund,LLOYDS PR SOLICITORS,142063322,"25,723.68 ",Legal Aid Payment Crime Higher
Ministry of Justice,LAA,04/11/2015,Crime Higher,Legal Aid Fund,LLOYDS PR SOLICITORS,142076051,"89,975.11 ",Legal Aid Payment Crime Higher
Ministry of Justice,LAA,04/11/2015,Crime Higher,Legal Aid Fund,ABBEY SOLICITORS,142051638,"28,625.75 ",Legal Aid Payment Crime Higher
Ministry of Justice,LAA,04/11/2015,Civil Representation,Legal Aid Fund,THE FIRM LLP,141718025,"27,549.64 ",Legal Aid Payment Civil Representation
Ministry of Justice,LAA,04/11/2015,Civil Representation,Legal Aid Fund,THE FIRM LLP,142087282,"85,244.31 ",Legal Aid Payment Civil Representation
Ministry of Justice,LAA,04/11/2015,Crime Higher,Legal Aid Fund,DJMS SOLICITORS LTD,142076073,"36,563.00 ",Legal Aid Payment Crime Higher
Ministry of Justice,LAA,04/11/2015,Crime Higher,Legal Aid Fund,STEPHEN LICKRISH & ASSOCIATES LTD,142051449,"58,953.35 ",Legal Aid Payment Crime Higher
Ministry of Justice,LAA,04/11/2015,Crime Higher,Legal Aid Fund,LINSKILLS,142076115,"68,902.75 ",Legal Aid Payment Crime Higher
Ministry of Justice,LAA,04/11/2015,Crime Higher,Legal Aid Fund,BIRNBERG PEIRCE LTD,142075968,"89,975.11 ",Legal Aid Payment Crime Higher
Ministry of Justice,LAA,04/11/2015,Crime Higher,Legal Aid Fund,BIRNBERG PEIRCE LTD,142075978,"89,975.11 ",Legal Aid Payment Crime Higher
Ministry of Justice,LAA,04/11/2015,Crime Higher,Legal Aid Fund,STEPHEN FIDLER & CO,142037953,"105,857.75 ",Legal Aid Payment Crime Higher
Ministry of Justice,LAA,04/11/2015,Crime Higher,Legal Aid Fund,QUINN MELVILLE,142075970,"89,975.11 ",Legal Aid Payment Crime Higher
Ministry of Justice,LAA,04/11/2015,Crime Higher,Legal Aid Fund,DRAYCOTT BROWNE LTD,142063185,"59,203.81 ",Legal Aid Payment Crime Higher
Ministry of Justice,LAA,04/11/2015,Crime Higher,Legal Aid Fund,STUART MILLER SOLICITORS LTD,142052446,"46,448.27 ",Legal Aid Payment Crime Higher
Ministry of Justice,LAA,04/11/2015,Crime Higher,Legal Aid Fund,STUART MILLER SOLICITORS LTD,142098123,"71,426.08 ",Legal Aid Payment Crime Higher
Ministry of Justice,LAA,04/11/2015,Crime Higher,Legal Aid Fund,KANGS SOLICITORS,142075919,"98,602.86 ",Legal Aid Payment Crime Higher
Ministry of Justice,LAA,04/11/2015,Crime Higher,Legal Aid Fund,KANGS SOLICITORS,142075927,"116,008.49 ",Legal Aid Payment Crime Higher
Ministry of Justice,LAA,04/11/2015,Crime Higher,Legal Aid Fund,KANGS SOLICITORS,142076035,"128,859.07 ",Legal Aid Payment Crime Higher
Ministry of Justice,LAA,04/11/2015,Crime Higher,Legal Aid Fund,MARTYN PROWEL LTD,142037791,"43,028.80 ",Legal Aid Payment Crime Higher
Ministry of Justice,LAA,04/11/2015,Crime Higher,Legal Aid Fund,WHITFIELDS,142037924,"89,975.11 ",Legal Aid Payment Crime Higher
Ministry of Justice,LAA,04/11/2015,Civil Representation,Legal Aid Fund,KUNDERT SOLICITORS LLP,142047068,"33,131.99 ",Legal Aid Payment Civil Representation
Ministry of Justice,LAA,04/11/2015,Civil Representation,Legal Aid Fund,MILLICHIPS,142045197,"41,314.54 ",Legal Aid Payment Civil Representation
Ministry of Justice,LAA,04/11/2015,Civil Representation,Legal Aid Fund,FISHER MEREDITH LLP,142082978,"26,952.79 ",Legal Aid Payment Civil Representation
Ministry of Justice,LAA,04/11/2015,Crime Higher,Legal Aid Fund,EDWARDS DUTHIE,142052232,"56,176.38 ",Legal Aid Payment Crime Higher
Ministry of Justice,LAA,04/11/2015,Civil Representation,Legal Aid Fund,FOOTNER & EWING,141948083,"34,373.74 ",Legal Aid Payment Civil Representation
Ministry of Justice,LAA,04/11/2015,Civil Representation,Legal Aid Fund,PORTER DODSON,141876441,"33,600.00 ",Legal Aid Payment Civil Representation
Ministry of Justice,LAA,04/11/2015,Civil Representation,Legal Aid Fund,WITHY KING LLP,141891141,"27,660.00 ",Legal Aid Payment Civil Representation
Ministry of Justice,LAA,04/11/2015,Civil Representation,Legal Aid Fund,DEWAR HOGAN,141677101,"35,571.00 ",Legal Aid Payment Civil Representation
Ministry of Justice,LAA,04/11/2015,Civil Representation,Legal Aid Fund,RUSSELL-COOKE LLP,6746607,"72,903.26 ",Legal Aid Payment Civil Representation
Ministry of Justice,LAA,05/11/2015,Civil Representation,Legal Aid Fund,MALIK & MICHAEL SOLICITORS,6612586,"53,379.40 ",Legal Aid Payment Civil Representation
Ministry of Justice,LAA,05/11/2015,Civil Representation,Legal Aid Fund,LEIGH DAY & CO,6635254,"42,959.93 ",Legal Aid Payment Civil Representation
Ministry of Justice,LAA,05/11/2015,Civil Representation,Legal Aid Fund,BOYES TURNER LLP,6746608,"82,287.76 ",Legal Aid Payment Civil Representation
Ministry of Justice,LAA,05/11/2015,Civil Representation,Legal Aid Fund,MINTONS,6746614,"32,043.11 ",Legal Aid Payment Civil Representation
Ministry of Justice,LAA,11/11/2015,Crime Higher,Legal Aid Fund,CARTWRIGHT KING SOLICITORS,142153039,"29,664.55 ",Legal Aid Payment Crime Higher
Ministry of Justice,LAA,11/11/2015,Crime Higher,Legal Aid Fund,CARTWRIGHT KING SOLICITORS,142153236,"97,616.83 ",Legal Aid Payment Crime Higher
Ministry of Justice,LAA,11/11/2015,Crime Higher,Legal Aid Fund,JACOBS & TRICKS,142127996,"28,297.73 ",Legal Aid Payment Crime Higher
Ministry of Justice,LAA,11/11/2015,Crime Higher,Legal Aid Fund,JACOBS & TRICKS,142153671,"82,476.68 ",Legal Aid Payment Crime Higher
Ministry of Justice,LAA,11/11/2015,Civil Representation,Legal Aid Fund,ROBIN S TOLSON QC,142147603,"37,422.00 ",Legal Aid Payment Civil Representation
Ministry of Justice,LAA,11/11/2015,Crime Higher,Legal Aid Fund,DAVID N BENTLEY,142141682,"39,168.92 ",Legal Aid Payment Crime Higher
Ministry of Justice,LAA,11/11/2015,Crime Higher,Legal Aid Fund,GORDON M ROSS,142172724,"54,770.40 ",Legal Aid Payment Crime Higher
Ministry of Justice,LAA,11/11/2015,Civil Representation,Legal Aid Fund,JENNIFER L SCULLY,142135011,"25,768.99 ",Legal Aid Payment Civil Representation
Ministry of Justice,LAA,11/11/2015,Crime Higher,Legal Aid Fund,CHARLES D P BURTON,142181442,"46,646.40 ",Legal Aid Payment Crime Higher
Ministry of Justice,LAA,11/11/2015,Civil Representation,Legal Aid Fund,SWITALSKI'S LTD,142131021,"42,918.45 ",Legal Aid Payment Civil Representation
Ministry of Justice,LAA,11/11/2015,Crime Lower,Legal Aid Fund,SWITALSKI'S LTD,142174039,"26,961.01 ",Legal Aid Payment Crime Lower
Ministry of Justice,LAA,11/11/2015,Crime Higher,Legal Aid Fund,LLOYDS PR SOLICITORS,142111506,"107,970.13 ",Legal Aid Payment Crime Higher
Ministry of Justice,LAA,11/11/2015,Crime Higher,Legal Aid Fund,LLOYDS PR SOLICITORS,142127219,"33,610.14 ",Legal Aid Payment Crime Higher
Ministry of Justice,LAA,11/11/2015,Crime Higher,Legal Aid Fund,SOLOMON LAW SOLICITORS LTD,142128034,"31,362.50 ",Legal Aid Payment Crime Higher
Ministry of Justice,LAA,11/11/2015,Crime Higher,Legal Aid Fund,SIMON BETHEL SOLICITORS,142140517,"29,019.44 ",Legal Aid Payment Crime Higher
Ministry of Justice,LAA,11/11/2015,Civil Representation,Legal Aid Fund,CREIGHTON & PARTNERS,142117336,"66,907.58 ",Legal Aid Payment Civil Representation
Ministry of Justice,LAA,11/11/2015,Civil Representation,Legal Aid Fund,CREIGHTON & PARTNERS,142144493,"28,337.00 ",Legal Aid Payment Civil Representation
Ministry of Justice,LAA,11/11/2015,Civil Representation,Legal Aid Fund,CREIGHTON & PARTNERS,142145325,"29,377.51 ",Legal Aid Payment Civil Representation
Ministry of Justice,LAA,11/11/2015,Civil Representation,Legal Aid Fund,LEONARD & CO,142115149,"43,027.46 ",Legal Aid Payment Civil Representation
Ministry of Justice,LAA,11/11/2015,Crime Higher,Legal Aid Fund,BROOKLYN SOLICITORS,142153684,"68,560.95 ",Legal Aid Payment Crime Higher
Ministry of Justice,LAA,11/11/2015,Crime Higher,Legal Aid Fund,EVANS BISSETT SOLICITORS,142153666,"35,769.14 ",Legal Aid Payment Crime Higher
Ministry of Justice,LAA,11/11/2015,Crime Higher,Legal Aid Fund,DANIEL WOODMAN & CO LTD,142181341,"51,217.33 ",Legal Aid Payment Crime Higher
Ministry of Justice,LAA,11/11/2015,Crime Higher,Legal Aid Fund,HARRINGTONS SOLICITORS LTD,142111753,"42,815.35 ",Legal Aid Payment Crime Higher
Ministry of Justice,LAA,11/11/2015,Crime Higher,Legal Aid Fund,MPR SOLICITORS LLP,142142004,"52,977.51 ",Legal Aid Payment Crime Higher
Ministry of Justice,LAA,11/11/2015,Crime Higher,Legal Aid Fund,EDWARD HAYES LLP,142181429,"46,202.16 ",Legal Aid Payment Crime Higher
Ministry of Justice,LAA,11/11/2015,Civil Representation,Legal Aid Fund,IRWIN MITCHELL LLP,141266590,"28,066.60 ",Legal Aid Payment Civil Representation
Ministry of Justice,LAA,11/11/2015,Crime Higher,Legal Aid Fund,IRWIN MITCHELL LLP,141592567,"85,246.36 ",Legal Aid Payment Crime Higher
Ministry of Justice,LAA,11/11/2015,Crime Higher,Legal Aid Fund,IRWIN MITCHELL LLP,141762701,"55,134.61 ",Legal Aid Payment Crime Higher
Ministry of Justice,LAA,11/11/2015,Crime Higher,Legal Aid Fund,KANGS SOLICITORS,142189844,"115,069.31 ",Legal Aid Payment Crime Higher
Ministry of Justice,LAA,11/11/2015,Civil Representation,Legal Aid Fund,GLAMORGAN LAW LLP,142147618,"37,617.50 ",Legal Aid Payment Civil Representation
Ministry of Justice,LAA,11/11/2015,Crime Higher,Legal Aid Fund,COCKS LLOYD,142181164,"31,019.99 ",Legal Aid Payment Crime Higher
Ministry of Justice,LAA,11/11/2015,Crime Higher,Legal Aid Fund,O'KEEFFE SOLICITORS,142111812,"26,451.19 ",Legal Aid Payment Crime Higher
Ministry of Justice,LAA,11/11/2015,Crime Higher,Legal Aid Fund,EDWARD FAIL BRADSHAW & WATERSON,142181179,"81,896.81 ",Legal Aid Payment Crime Higher
Ministry of Justice,LAA,11/11/2015,Crime Higher,Legal Aid Fund,J D SPICER & CO [ADVOCATE],142154196,"32,386.30 ",Legal Aid Payment Crime Higher
Ministry of Justice,LAA,11/11/2015,Civil Representation,Legal Aid Fund,SUSAN JENKINS,142147673,"45,175.02 ",Legal Aid Payment Civil Representation
Ministry of Justice,LAA,11/11/2015,Civil Representation,Legal Aid Fund,IAN R GRIFFIN,142134944,"37,908.00 ",Legal Aid Payment Civil Representation
Ministry of Justice,LAA,11/11/2015,Crime Higher,Legal Aid Fund,STUART H M DENNEY,142126763,"77,447.35 ",Legal Aid Payment Crime Higher
Ministry of Justice,LAA,11/11/2015,Crime Higher,Legal Aid Fund,STEPHEN N SPENCE,142141940,"31,320.00 ",Legal Aid Payment Crime Higher
Ministry of Justice,LAA,11/11/2015,Crime Higher,Legal Aid Fund,JSP LAW LTD,142181606,"26,240.28 ",Legal Aid Payment Crime Higher
Ministry of Justice,LAA,11/11/2015,Crime Higher,Legal Aid Fund,CHOPRA & GILL SOLICITORS,142182085,"42,171.38 ",Legal Aid Payment Crime Higher
Ministry of Justice,LAA,11/11/2015,Crime Higher,Legal Aid Fund,AB MACKENZIE SOLICITORS,142181159,"48,494.48 ",Legal Aid Payment Crime Higher
Ministry of Justice,LAA,11/11/2015,Crime Higher,Legal Aid Fund,BRIEFS LAW SOLICITORS,142181218,"41,429.15 ",Legal Aid Payment Crime Higher
Ministry of Justice,LAA,11/11/2015,Crime Higher,Legal Aid Fund,PARRY DAVIES CLWYD JONES & LLOYD LLP,142153717,"107,970.13 ",Legal Aid Payment Crime Higher
Ministry of Justice,LAA,11/11/2015,Crime Higher,Legal Aid Fund,CHIVERS SOLICITORS,142153704,"73,813.07 ",Legal Aid Payment Crime Higher
Ministry of Justice,LAA,11/11/2015,Crime Higher,Legal Aid Fund,BRUNSKILL LTD,142140944,"58,953.35 ",Legal Aid Payment Crime Higher
Ministry of Justice,LAA,11/11/2015,Crime Higher,Legal Aid Fund,M R LAWS,142153672,"96,060.58 ",Legal Aid Payment Crime Higher
Ministry of Justice,LAA,11/11/2015,Crime Higher,Legal Aid Fund,M R LAWS,142153713,"84,706.24 ",Legal Aid Payment Crime Higher
Ministry of Justice,LAA,11/11/2015,Crime Higher,Legal Aid Fund,HINE SOLICITORS,142181554,"37,055.44 ",Legal Aid Payment Crime Higher
Ministry of Justice,LAA,11/11/2015,Crime Higher,Legal Aid Fund,KHAN SOLICITORS LTD,142126669,"52,704.13 ",Legal Aid Payment Crime Higher
Ministry of Justice,LAA,11/11/2015,Civil Representation,Legal Aid Fund,GC SOLICITORS,142172147,"25,499.21 ",Legal Aid Payment Civil Representation
Ministry of Justice,LAA,11/11/2015,Civil Representation,Legal Aid Fund,GOODMAN RAY,142191042,"25,275.17 ",Legal Aid Payment Civil Representation
Ministry of Justice,LAA,11/11/2015,Civil Representation,Legal Aid Fund,LEIGH DAY & CO,142120927,"142,188.76 ",Legal Aid Payment Civil Representation
Ministry of Justice,LAA,11/11/2015,Crime Higher,Legal Aid Fund,FRISBY SOLICITORS LTD,142141997,"90,162.35 ",Legal Aid Payment Crime Higher
Ministry of Justice,LAA,11/11/2015,Civil Representation,Legal Aid Fund,WILLSONS SOLICITORS,142188367,"31,221.61 ",Legal Aid Payment Civil Representation
Ministry of Justice,LAA,11/11/2015,Crime Higher,Legal Aid Fund,CHAUDHURY SOLICITORS LTD,142181111,"29,002.13 ",Legal Aid Payment Crime Higher
Ministry of Justice,LAA,11/11/2015,Crime Higher,Legal Aid Fund,ABV SOLICITORS,142141981,"77,401.48 ",Legal Aid Payment Crime Higher
Ministry of Justice,LAA,11/11/2015,Crime Higher,Legal Aid Fund,HEALEY COLBON,142153708,"116,967.65 ",Legal Aid Payment Crime Higher
Ministry of Justice,LAA,11/11/2015,Crime Higher,Legal Aid Fund,ANGELA PORTER SOLICITORS,142153696,"57,644.89 ",Legal Aid Payment Crime Higher
Ministry of Justice,LAA,11/11/2015,Crime Higher,Legal Aid Fund,SAMUEL ROSS SOLICITORS,142180998,"49,729.07 ",Legal Aid Payment Crime Higher
Ministry of Justice,LAA,11/11/2015,Crime Higher,Legal Aid Fund,MCGREGOR'S SOLICITORS,142181121,"31,019.99 ",Legal Aid Payment Crime Higher
Ministry of Justice,LAA,11/11/2015,Civil Representation,Legal Aid Fund,COOPER NIMMO LIMITED,141962041,"36,023.05 ",Legal Aid Payment Civil Representation
Ministry of Justice,LAA,11/11/2015,Crime Higher,Legal Aid Fund,MARY MONSON SOLICITORS,142127505,"30,535.94 ",Legal Aid Payment Crime Higher
Ministry of Justice,LAA,11/11/2015,Crime Higher,Legal Aid Fund,NOBLE SOLICITORS,142126982,"29,664.55 ",Legal Aid Payment Crime Higher
Ministry of Justice,LAA,11/11/2015,Crime Higher,Legal Aid Fund,FARADAYS SOLICITORS LTD,142111858,"69,309.55 ",Legal Aid Payment Crime Higher
Ministry of Justice,LAA,11/11/2015,Crime Higher,Legal Aid Fund,LLEWELLYN JONES LTD,142181368,"31,339.98 ",Legal Aid Payment Crime Higher
Ministry of Justice,LAA,11/11/2015,Crime Higher,Legal Aid Fund,ALLEN HOOLE SOLICITORS ,142181188,"33,487.27 ",Legal Aid Payment Crime Higher
Ministry of Justice,LAA,11/11/2015,Crime Higher,Legal Aid Fund,MORTONS SOLICITORS LTD,142153893,"27,659.62 ",Legal Aid Payment Crime Higher
Ministry of Justice,LAA,11/11/2015,Crime Higher,Legal Aid Fund,BERNARD CHILL & AXTELL,142127964,"45,229.78 ",Legal Aid Payment Crime Higher
Ministry of Justice,LAA,11/11/2015,Crime Higher,Legal Aid Fund,BLACKFORDS LLP,142181447,"29,884.85 ",Legal Aid Payment Crime Higher
Ministry of Justice,LAA,11/11/2015,Civil Representation,Legal Aid Fund,AMD SOLICITORS LTD,142045464,"25,298.36 ",Legal Aid Payment Civil Representation
Ministry of Justice,LAA,11/11/2015,Crime Higher,Legal Aid Fund,ASGHAR & CO,142182131,"49,909.69 ",Legal Aid Payment Crime Higher
Ministry of Justice,LAA,11/11/2015,Civil Representation,Legal Aid Fund,EDWARDS DUTHIE,142134585,"26,327.15 ",Legal Aid Payment Civil Representation
Ministry of Justice,LAA,11/11/2015,Civil Representation,Legal Aid Fund,GAYNOR HALL,142121475,"28,764.82 ",Legal Aid Payment Civil Representation
Ministry of Justice,LAA,11/11/2015,Legal Help,Legal Aid Fund,CAMPBELL JERVIER SOLICITORS LTD,141679850,"44,642.00 ",Legal Aid Payment Legal Help
Ministry of Justice,LAA,11/11/2015,Legal Help,Legal Aid Fund,CAMPBELL JERVIER SOLICITORS LTD,142012901,"27,845.00 ",Legal Aid Payment Legal Help
Ministry of Justice,LAA,11/11/2015,Civil Representation,Legal Aid Fund,CAROLINE A HARTLEY,142115179,"39,916.80 ",Legal Aid Payment Civil Representation
Ministry of Justice,LAA,11/11/2015,Crime Higher,Legal Aid Fund,JEREMY D LYNN,142154223,"25,829.04 ",Legal Aid Payment Crime Higher
Ministry of Justice,LAA,11/11/2015,Civil Representation,Legal Aid Fund,JOAN Y MOORE,142120080,"53,913.60 ",Legal Aid Payment Civil Representation
Ministry of Justice,LAA,11/11/2015,Crime Higher,Legal Aid Fund,BENJAMIN J G GORDON,142127428,"25,264.08 ",Legal Aid Payment Crime Higher
Ministry of Justice,LAA,11/11/2015,Civil Representation,Legal Aid Fund,LORRAINE CAVANAGH,142187439,"25,041.24 ",Legal Aid Payment Civil Representation
Ministry of Justice,LAA,11/11/2015,Civil Representation,Legal Aid Fund,KARL J ROWLEY,141638127,"34,927.20 ",Legal Aid Payment Civil Representation
Ministry of Justice,LAA,11/11/2015,Civil Representation,Legal Aid Fund,KARL J ROWLEY,142147558,"50,641.20 ",Legal Aid Payment Civil Representation
Ministry of Justice,LAA,11/11/2015,Crime Higher,Legal Aid Fund,PAUL H SIMON,142127908,"26,526.60 ",Legal Aid Payment Crime Higher
Ministry of Justice,LAA,11/11/2015,Crime Higher,Legal Aid Fund,ENNON & CO,142141054,"82,436.65 ",Legal Aid Payment Crime Higher
Ministry of Justice,LAA,11/11/2015,Crime Higher,Legal Aid Fund,EBR ATTRIDGE LLP,142181820,"45,260.47 ",Legal Aid Payment Crime Higher
Ministry of Justice,LAA,11/11/2015,Crime Higher,Legal Aid Fund,WEST MIDLANDS SOLICITORS,142141056,"28,321.18 ",Legal Aid Payment Crime Higher
Ministry of Justice,LAA,11/11/2015,Crime Higher,Legal Aid Fund,MARK JONES & PARTNERS,142111556,"32,108.84 ",Legal Aid Payment Crime Higher
Ministry of Justice,LAA,11/11/2015,Crime Higher,Legal Aid Fund,THE CENTRAL LAW PRACTICE,142141029,"60,682.25 ",Legal Aid Payment Crime Higher
Ministry of Justice,LAA,11/11/2015,Crime Higher,Legal Aid Fund,BIRNBERG PEIRCE LTD,142153674,"89,975.11 ",Legal Aid Payment Crime Higher
Ministry of Justice,LAA,11/11/2015,Crime Lower,Legal Aid Fund,O'GARRA'S SOLICITORS,142173937,"41,638.74 ",Legal Aid Payment Crime Lower
Ministry of Justice,LAA,11/11/2015,Crime Lower,Legal Aid Fund,O'GARRA'S SOLICITORS,142174257,"33,000.00 ",Legal Aid Payment Crime Lower
Ministry of Justice,LAA,11/11/2015,Crime Higher,Legal Aid Fund,STEPHEN FIDLER & CO,142126347,"58,193.38 ",Legal Aid Payment Crime Higher
Ministry of Justice,LAA,11/11/2015,Crime Higher,Legal Aid Fund,COBLEYS LLP,142153678,"98,687.66 ",Legal Aid Payment Crime Higher
Ministry of Justice,LAA,11/11/2015,Crime Higher,Legal Aid Fund,COBLEYS LLP,142153699,"56,314.37 ",Legal Aid Payment Crime Higher
Ministry of Justice,LAA,11/11/2015,Civil Representation,Legal Aid Fund,BRADBURY ROBERTS & RABY,142119279,"29,503.25 ",Legal Aid Payment Civil Representation
Ministry of Justice,LAA,11/11/2015,Civil Representation,Legal Aid Fund,MACHINS SOLICITORS LLP,142185381,"32,164.45 ",Legal Aid Payment Civil Representation
Ministry of Justice,LAA,11/11/2015,Civil Representation,Legal Aid Fund,CRANE & STAPLES,142144259,"34,139.95 ",Legal Aid Payment Civil Representation
Ministry of Justice,LAA,11/11/2015,Crime Higher,Legal Aid Fund,SOUTHERNS,142182127,"98,687.66 ",Legal Aid Payment Crime Higher
Ministry of Justice,LAA,11/11/2015,Crime Higher,Legal Aid Fund,BARK & CO,142153688,"116,008.49 ",Legal Aid Payment Crime Higher
Ministry of Justice,LAA,11/11/2015,Crime Higher,Legal Aid Fund,BARK & CO,142176110,"120,643.20 ",Legal Aid Payment Crime Higher
Ministry of Justice,LAA,11/11/2015,Crime Higher,Legal Aid Fund,TUCKERS SOLICITORS LLP,142141603,"35,088.73 ",Legal Aid Payment Crime Higher
Ministry of Justice,LAA,11/11/2015,Crime Higher,Legal Aid Fund,VEJA & CO LTD,142153443,"27,002.71 ",Legal Aid Payment Crime Higher
Ministry of Justice,LAA,11/11/2015,Civil Representation,Legal Aid Fund,STEEL & SHAMASH,142118660,"32,882.96 ",Legal Aid Payment Civil Representation
Ministry of Justice,LAA,18/11/2015,Crime Higher,Legal Aid Fund,TUCKERS SOLICITORS LLP,142210091,"47,696.29 ",Legal Aid Payment Crime Higher
Ministry of Justice,LAA,18/11/2015,Crime Higher,Legal Aid Fund,STUART MILLER SOLICITORS LTD-ADVOCATE,142210071,"29,513.76 ",Legal Aid Payment Crime Higher
Ministry of Justice,LAA,18/11/2015,Crime Higher,Legal Aid Fund,KIERAN J M C GALVIN,142268740,"26,043.90 ",Legal Aid Payment Crime Higher
Ministry of Justice,LAA,18/11/2015,Crime Higher,Legal Aid Fund,CHRISTOPHER J HARDING,142233396,"31,285.20 ",Legal Aid Payment Crime Higher
Ministry of Justice,LAA,18/11/2015,Civil Representation,Legal Aid Fund,TINA G COOK QC,142252540,"35,968.68 ",Legal Aid Payment Civil Representation
Ministry of Justice,LAA,18/11/2015,Civil Representation,Legal Aid Fund,WILLIAM J TYLER,141913978,"52,390.80 ",Legal Aid Payment Civil Representation
Ministry of Justice,LAA,18/11/2015,Crime Higher,Legal Aid Fund,CAROLINA A GUILOFF,142196675,"45,802.20 ",Legal Aid Payment Crime Higher
Ministry of Justice,LAA,18/11/2015,Crime Higher,Legal Aid Fund,NEIL F BAKI,142196372,"27,162.60 ",Legal Aid Payment Crime Higher
Ministry of Justice,LAA,18/11/2015,Civil Representation,Legal Aid Fund,PEPPERELLS SOLICITORS,3E+15,"41,097.60 ",Legal Aid Payment Civil Representation
Ministry of Justice,LAA,18/11/2015,Crime Higher,Legal Aid Fund,TUCKERS SOLICITORS LLP,142260354,"35,908.15 ",Legal Aid Payment Crime Higher
Ministry of Justice,LAA,18/11/2015,Crime Higher,Legal Aid Fund,L P EVANS SOLICITORS,142238660,"47,174.73 ",Legal Aid Payment Crime Higher
Ministry of Justice,LAA,18/11/2015,Crime Higher,Legal Aid Fund,L P EVANS SOLICITORS,142259958,"64,458.02 ",Legal Aid Payment Crime Higher
Ministry of Justice,LAA,18/11/2015,Crime Higher,Legal Aid Fund,L P EVANS SOLICITORS,142260070,"39,899.15 ",Legal Aid Payment Crime Higher
Ministry of Justice,LAA,18/11/2015,Crime Higher,Legal Aid Fund,L P EVANS SOLICITORS,142260125,"26,383.13 ",Legal Aid Payment Crime Higher
Ministry of Justice,LAA,18/11/2015,Civil Representation,Legal Aid Fund,JACKSON QUINN,142218584,"27,243.16 ",Legal Aid Payment Civil Representation
Ministry of Justice,LAA,18/11/2015,Crime Higher,Legal Aid Fund,MCKENZIES SOLICITORS,142196582,"29,884.85 ",Legal Aid Payment Crime Higher
Ministry of Justice,LAA,18/11/2015,Crime Higher,Legal Aid Fund,M & M SOLICITORS,142196854,"48,545.53 ",Legal Aid Payment Crime Higher
Ministry of Justice,LAA,18/11/2015,Crime Higher,Legal Aid Fund,ABBEY SOLICITORS,142239060,"30,900.53 ",Legal Aid Payment Crime Higher
Ministry of Justice,LAA,18/11/2015,Civil Representation,Legal Aid Fund,THE FIRM LLP,142227708,"27,931.04 ",Legal Aid Payment Civil Representation
Ministry of Justice,LAA,18/11/2015,Crime Higher,Legal Aid Fund,JONAS ROY BLOOM,142258973,"35,307.67 ",Legal Aid Payment Crime Higher
Ministry of Justice,LAA,18/11/2015,Crime Higher,Legal Aid Fund,MCGREGOR'S SOLICITORS,142260079,"26,371.39 ",Legal Aid Payment Crime Higher
Ministry of Justice,LAA,18/11/2015,Crime Higher,Legal Aid Fund,JORDANS LLP,142224345,"86,014.49 ",Legal Aid Payment Crime Higher
Ministry of Justice,LAA,18/11/2015,Crime Higher,Legal Aid Fund,LOUND MULRENAN SOLICITORS,142196977,"49,729.07 ",Legal Aid Payment Crime Higher
Ministry of Justice,LAA,18/11/2015,Civil Representation,Legal Aid Fund,IRWIN MITCHELL LLP,142250955,"35,712.46 ",Legal Aid Payment Civil Representation
Ministry of Justice,LAA,18/11/2015,Crime Higher,Legal Aid Fund,O'MAHONEY & CO,142259406,"48,239.24 ",Legal Aid Payment Crime Higher
Ministry of Justice,LAA,18/11/2015,Crime Higher,Legal Aid Fund,KRISTINA HARRISON SOLICITORS,142196908,"103,808.99 ",Legal Aid Payment Crime Higher
Ministry of Justice,LAA,18/11/2015,Crime Higher,Legal Aid Fund,KANGS SOLICITORS,142225421,"58,953.35 ",Legal Aid Payment Crime Higher
Ministry of Justice,LAA,18/11/2015,Crime Higher,Legal Aid Fund,DE MAIDS SOLICITORS & ADVOCATES,142195366,"32,844.44 ",Legal Aid Payment Crime Higher
Ministry of Justice,LAA,18/11/2015,Civil Representation,Legal Aid Fund,BLASER MILLS,142212979,"25,445.60 ",Legal Aid Payment Civil Representation
Ministry of Justice,LAA,18/11/2015,Crime Higher,Legal Aid Fund,KAIM TODNER SOLICITORS LIMITED,142210253,"81,727.08 ",Legal Aid Payment Crime Higher
Ministry of Justice,LAA,18/11/2015,Crime Higher,Legal Aid Fund,CHARLES ALLOTEY & CO,142223834,"105,857.75 ",Legal Aid Payment Crime Higher
Ministry of Justice,LAA,18/11/2015,Crime Higher,Legal Aid Fund,ASGHAR & CO,142259832,"38,204.02 ",Legal Aid Payment Crime Higher
Ministry of Justice,LAA,18/11/2015,Crime Higher,Legal Aid Fund,BERNARD CHILL & AXTELL,142195851,"28,140.71 ",Legal Aid Payment Crime Higher
Ministry of Justice,LAA,18/11/2015,Crime Higher,Legal Aid Fund,NOBLE SOLICITORS-ADVOCATE,142238531,"29,220.78 ",Legal Aid Payment Crime Higher
Ministry of Justice,LAA,18/11/2015,Civil Representation,Legal Aid Fund,PAUL M STOREY QC,142201483,"47,256.60 ",Legal Aid Payment Civil Representation
Ministry of Justice,LAA,18/11/2015,Civil Representation,Legal Aid Fund,SIMEON A MASKREY QC,142185690,"27,585.00 ",Legal Aid Payment Civil Representation
Ministry of Justice,LAA,18/11/2015,Civil Representation,Legal Aid Fund,JONATHANN C WILSON,3E+15,"25,948.12 ",Legal Aid Payment Civil Representation
Ministry of Justice,LAA,18/11/2015,Crime Higher,Legal Aid Fund,JASON K PITTER,142209445,"30,264.54 ",Legal Aid Payment Crime Higher
Ministry of Justice,LAA,18/11/2015,Crime Higher,Legal Aid Fund,IRSHAD A SHEIKH,142196327,"33,403.82 ",Legal Aid Payment Crime Higher
Ministry of Justice,LAA,18/11/2015,Civil Representation,Legal Aid Fund,MICHAEL J FORDHAM,142214656,"31,269.38 ",Legal Aid Payment Civil Representation
Ministry of Justice,LAA,18/11/2015,Crime Higher,Legal Aid Fund,CARTWRIGHT KING SOLICITORS,142238699,"29,002.13 ",Legal Aid Payment Crime Higher
Ministry of Justice,LAA,18/11/2015,Crime Higher,Legal Aid Fund,CHIVERS SOLICITORS,142195951,"37,296.80 ",Legal Aid Payment Crime Higher
Ministry of Justice,LAA,18/11/2015,Crime Higher,Legal Aid Fund,BRUNSKILL LTD,142253857,"114,255.37 ",Legal Aid Payment Crime Higher
Ministry of Justice,LAA,18/11/2015,Crime Higher,Legal Aid Fund,OLD BAILEY SOLICITORS LTD,142223579,"37,089.47 ",Legal Aid Payment Crime Higher
Ministry of Justice,LAA,18/11/2015,Crime Higher,Legal Aid Fund,KHAN'S LAW FIRM LTD TA KK & CO,142195597,"33,850.13 ",Legal Aid Payment Crime Higher
Ministry of Justice,LAA,18/11/2015,Crime Higher,Legal Aid Fund,FITZGERALD SOLICITORS,142258986,"30,687.18 ",Legal Aid Payment Crime Higher
Ministry of Justice,LAA,18/11/2015,Crime Higher,Legal Aid Fund,ULLAH LAW,142196429,"25,638.48 ",Legal Aid Payment Crime Higher
Ministry of Justice,LAA,18/11/2015,Crime Higher,Legal Aid Fund,STERNBERG REED SOLICITORS,142239015,"32,528.12 ",Legal Aid Payment Crime Higher
Ministry of Justice,LAA,18/11/2015,Crime Higher,Legal Aid Fund,NEUMANS LLP,142195722,"37,791.76 ",Legal Aid Payment Crime Higher
Ministry of Justice,LAA,18/11/2015,Crime Higher,Legal Aid Fund,ABV SOLICITORS,142260207,"56,137.20 ",Legal Aid Payment Crime Higher
Ministry of Justice,LAA,18/11/2015,Crime Higher,Legal Aid Fund,EBR ATTRIDGE LLP,142260418,"43,450.27 ",Legal Aid Payment Crime Higher
Ministry of Justice,LAA,18/11/2015,Civil Representation,Legal Aid Fund,MAKIN DIXON SOLICITORS LTD,142229335,"29,051.76 ",Legal Aid Payment Civil Representation
Ministry of Justice,LAA,18/11/2015,Crime Higher,Legal Aid Fund,LEVINS SOLICITORS,142195582,"31,442.58 ",Legal Aid Payment Crime Higher
Ministry of Justice,LAA,18/11/2015,Crime Higher,Legal Aid Fund,CHIVERS SOLICITORS,142225340,"103,105.49 ",Legal Aid Payment Crime Higher
Ministry of Justice,LAA,18/11/2015,Crime Higher,Legal Aid Fund,STEPHEN FIDLER & CO,142258976,"46,046.86 ",Legal Aid Payment Crime Higher
Ministry of Justice,LAA,18/11/2015,Crime Higher,Legal Aid Fund,BYRNE & PARTNERS LLP,142265941,"25,151.35 ",Legal Aid Payment Crime Higher
Ministry of Justice,LAA,18/11/2015,Crime Higher,Legal Aid Fund,MARK JONES & PARTNERS,142259347,"50,264.15 ",Legal Aid Payment Crime Higher
Ministry of Justice,LAA,18/11/2015,Crime Higher,Legal Aid Fund,KELCEY & HALL SOLICITORS,142209683,"37,989.88 ",Legal Aid Payment Crime Higher
Ministry of Justice,LAA,18/11/2015,Crime Higher,Legal Aid Fund,METCALFE COPEMAN & PETTEFAR,142260282,"99,154.83 ",Legal Aid Payment Crime Higher
Ministry of Justice,LAA,18/11/2015,Civil Representation,Legal Aid Fund,BROMLEYS SOLICITORS LLP,142249359,"25,014.77 ",Legal Aid Payment Civil Representation
Ministry of Justice,LAA,18/11/2015,Civil Representation,Legal Aid Fund,STEPHENSONS SOLICITORS LLP,142199420,"26,066.17 ",Legal Aid Payment Civil Representation
Ministry of Justice,LAA,18/11/2015,Civil Representation,Legal Aid Fund,ROEBUCKS SOLICITORS,142254271,"26,611.80 ",Legal Aid Payment Civil Representation
Ministry of Justice,LAA,18/11/2015,Crime Higher,Legal Aid Fund,FARLEYS SOLICITORS LLP,142210590,"39,262.35 ",Legal Aid Payment Crime Higher
Ministry of Justice,LAA,18/11/2015,Crime Higher,Legal Aid Fund,FARLEYS SOLICITORS LLP,142239011,"37,298.94 ",Legal Aid Payment Crime Higher
Ministry of Justice,LAA,18/11/2015,Crime Higher,Legal Aid Fund,FARLEYS SOLICITORS LLP,142210348,"58,953.35 ",Legal Aid Payment Crime Higher
Ministry of Justice,LAA,18/11/2015,Crime Higher,Legal Aid Fund,SWEETMAN BURKE & SINKER,142238086,"27,002.71 ",Legal Aid Payment Crime Higher
Ministry of Justice,LAA,18/11/2015,Civil Representation,Legal Aid Fund,SWITALSKI'S LTD,142229465,"30,505.00 ",Legal Aid Payment Civil Representation
Ministry of Justice,LAA,18/11/2015,Civil Representation,Legal Aid Fund,RAMSDENS SOLICITORS LLP,142201895,"52,612.32 ",Legal Aid Payment Civil Representation
Ministry of Justice,LAA,18/11/2015,Crime Higher,Legal Aid Fund,DAVID J BARNES,142239025,"26,184.48 ",Legal Aid Payment Crime Higher
Ministry of Justice,LAA,18/11/2015,Crime Higher,Legal Aid Fund,SEAN KIVDEH,142196740,"27,156.72 ",Legal Aid Payment Crime Higher
Ministry of Justice,LAA,18/11/2015,Crime Higher,Legal Aid Fund,SARAH J ELLIOT,142210059,"67,582.62 ",Legal Aid Payment Crime Higher
Ministry of Justice,LAA,18/11/2015,Civil Representation,Legal Aid Fund,GUY C SWIFFEN,142201042,"28,993.95 ",Legal Aid Payment Civil Representation
Ministry of Justice,LAA,18/11/2015,Crime Higher,Legal Aid Fund,CHARLENE E L SUMNALL,142196467,"39,533.70 ",Legal Aid Payment Crime Higher
Ministry of Justice,LAA,18/11/2015,Civil Representation,Legal Aid Fund,SHELAGH A FARROR,142204630,"49,085.68 ",Legal Aid Payment Civil Representation
Ministry of Justice,LAA,18/11/2015,Civil Representation,Legal Aid Fund,DAVID M BOYD,140185854,"38,473.98 ",Legal Aid Payment Civil Representation
Ministry of Justice,LAA,18/11/2015,Civil Representation,Legal Aid Fund,NEIL J FRY,142252107,"29,430.00 ",Legal Aid Payment Civil Representation
Ministry of Justice,LAA,18/11/2015,Crime Higher,Legal Aid Fund,ALAN P KENT QC,142223774,"29,152.43 ",Legal Aid Payment Crime Higher
Ministry of Justice,LAA,18/11/2015,Civil Representation,Legal Aid Fund,NKUMBE EKANEY QC,142201956,"55,015.20 ",Legal Aid Payment Civil Representation
Ministry of Justice,LAA,18/11/2015,Crime Higher,Legal Aid Fund,CHRISTOPHER J MAY,142224727,"27,287.40 ",Legal Aid Payment Crime Higher
Ministry of Justice,LAA,18/11/2015,Crime Higher,Legal Aid Fund,MTC & CO SOLICITORS,142258967,"68,331.50 ",Legal Aid Payment Crime Higher
Ministry of Justice,LAA,18/11/2015,Crime Higher,Legal Aid Fund,LLOYDS PR SOLICITORS,142196484,"65,492.30 ",Legal Aid Payment Crime Higher
Ministry of Justice,LAA,18/11/2015,Crime Higher,Legal Aid Fund,COBLEYS LLP,142196715,"25,415.29 ",Legal Aid Payment Crime Higher
Ministry of Justice,LAA,18/11/2015,Crime Higher,Legal Aid Fund,CARTWRIGHT KING SOLICITORS,142238719,"25,795.12 ",Legal Aid Payment Crime Higher
Ministry of Justice,LAA,18/11/2015,Crime Lower,Legal Aid Fund,HENRY'S SOLICITORS LTD,142019139,"55,300.00 ",Legal Aid Payment Crime Lower
Ministry of Justice,LAA,18/11/2015,Civil Representation,Legal Aid Fund,CREIGHTON & PARTNERS,142262925,"47,946.56 ",Legal Aid Payment Civil Representation
Ministry of Justice,LAA,18/11/2015,Crime Higher,Legal Aid Fund,IRVINE THANVI NATAS SOLICITORS,142210215,"64,109.20 ",Legal Aid Payment Crime Higher
Ministry of Justice,LAA,18/11/2015,Crime Higher,Legal Aid Fund,LAURENCE LEE & CO,142260150,"26,173.36 ",Legal Aid Payment Crime Higher
Ministry of Justice,LAA,18/11/2015,Crime Higher,Legal Aid Fund,THE CASTLE PARTNERSHIP,142225417,"37,089.47 ",Legal Aid Payment Crime Higher
Ministry of Justice,LAA,18/11/2015,Crime Higher,Legal Aid Fund,HODGSON COULTHARD & CO,142267229,"199,854.90 ",Legal Aid Payment Crime Higher
Ministry of Justice,LAA,18/11/2015,Crime Higher,Legal Aid Fund,BARK & CO,142224562,"103,442.18 ",Legal Aid Payment Crime Higher
Ministry of Justice,LAA,18/11/2015,Crime Higher,Legal Aid Fund,AHMED & CO,142224227,"104,681.07 ",Legal Aid Payment Crime Higher
Ministry of Justice,LAA,18/11/2015,Civil Representation,Legal Aid Fund,CHURCHERS BOLITHO WAY,142212895,"37,094.20 ",Legal Aid Payment Civil Representation
Ministry of Justice,LAA,18/11/2015,Civil Representation,Legal Aid Fund,THE RICHMOND PARTNERSHIP,3E+15,"25,076.02 ",Legal Aid Payment Civil Representation
Ministry of Justice,LAA,18/11/2015,Crime Higher,Legal Aid Fund,THOMPSONS,142259631,"37,791.76 ",Legal Aid Payment Crime Higher
Ministry of Justice,LAA,18/11/2015,Civil Representation,Legal Aid Fund,"NICOL, DENVIR & PURNELL SOLICITORS",142213638,"34,339.71 ",Legal Aid Payment Civil Representation
Ministry of Justice,LAA,18/11/2015,Civil Representation,Legal Aid Fund,PD LAW LTD,142214490,"48,674.27 ",Legal Aid Payment Civil Representation
Ministry of Justice,LAA,18/11/2015,Crime Higher,Legal Aid Fund,RICHARD J WRIGHT QC,142196885,"27,977.63 ",Legal Aid Payment Crime Higher
Ministry of Justice,LAA,18/11/2015,Crime Higher,Legal Aid Fund,RICHARD J WRIGHT QC,142196885,"27,977.63 ",Legal Aid Payment Crime Higher
Ministry of Justice,LAA,25/11/2015,Civil Representation,Legal Aid Fund,NICHOLAS A J GOODWIN,6870170,"54,885.60 ",Legal Aid Payment Civil Representation
Ministry of Justice,LAA,25/11/2015,Crime Higher,Legal Aid Fund,TUCKERS SOLICITORS LLP,142274430,"46,153.72 ",Legal Aid Payment Crime Higher
Ministry of Justice,LAA,25/11/2015,Crime Higher,Legal Aid Fund,ZEENAT S ISLAM,142316154,"26,074.85 ",Legal Aid Payment Crime Higher
Ministry of Justice,LAA,25/11/2015,Crime Higher,Legal Aid Fund,IRVINE THANVI NATAS SOLICITORS-ADV.,142315842,"46,120.20 ",Legal Aid Payment Crime Higher
Ministry of Justice,LAA,25/11/2015,Civil Representation,Legal Aid Fund,ROBIN S TOLSON QC,142307258,"64,787.31 ",Legal Aid Payment Civil Representation
Ministry of Justice,LAA,25/11/2015,Crime Higher,Legal Aid Fund,CARTWRIGHT KING SOLICITORS,142274722,"49,729.07 ",Legal Aid Payment Crime Higher
Ministry of Justice,LAA,25/11/2015,Crime Higher,Legal Aid Fund,STOKOE PARTNERSHIP,142315353,"70,697.94 ",Legal Aid Payment Crime Higher
Ministry of Justice,LAA,25/11/2015,Crime Higher,Legal Aid Fund,K LEGAL SOLICITORS,142302462,"74,592.87 ",Legal Aid Payment Crime Higher
Ministry of Justice,LAA,25/11/2015,Crime Higher,Legal Aid Fund,ABR SOLICITORS,142287732,"52,704.13 ",Legal Aid Payment Crime Higher
Ministry of Justice,LAA,25/11/2015,Crime Higher,Legal Aid Fund,RKN SOLICITORS LTD,142315402,"69,638.04 ",Legal Aid Payment Crime Higher
Ministry of Justice,LAA,25/11/2015,Crime Higher,Legal Aid Fund,K A SOLICITORS,142315238,"98,687.66 ",Legal Aid Payment Crime Higher
Ministry of Justice,LAA,25/11/2015,Crime Higher,Legal Aid Fund,HINE SOLICITORS,142335861,"48,639.12 ",Legal Aid Payment Crime Higher
Ministry of Justice,LAA,25/11/2015,Crime Higher,Legal Aid Fund,HARRIS SOLICITORS,142274131,"29,002.13 ",Legal Aid Payment Crime Higher
Ministry of Justice,LAA,25/11/2015,Crime Higher,Legal Aid Fund,UK LAW,142302692,"42,304.56 ",Legal Aid Payment Crime Higher
Ministry of Justice,LAA,25/11/2015,Crime Higher,Legal Aid Fund,ROSE & DUNN,142335443,"26,195.95 ",Legal Aid Payment Crime Higher
Ministry of Justice,LAA,25/11/2015,Crime Higher,Legal Aid Fund,RIAZ SOLICITORS,142288502,"29,360.36 ",Legal Aid Payment Crime Higher
Ministry of Justice,LAA,25/11/2015,Crime Higher,Legal Aid Fund,CARTER MOORE SOLICITORS LTD,142273621,"29,664.55 ",Legal Aid Payment Crime Higher
Ministry of Justice,LAA,25/11/2015,Crime Higher,Legal Aid Fund,STEPHEN LICKRISH & ASSOCIATES LTD,142336254,"34,311.85 ",Legal Aid Payment Crime Higher
Ministry of Justice,LAA,25/11/2015,Crime Higher,Legal Aid Fund,ABV SOLICITORS,142335925,"50,716.97 ",Legal Aid Payment Crime Higher
Ministry of Justice,LAA,25/11/2015,Crime Higher,Legal Aid Fund,ABV SOLICITORS,142335994,"31,598.53 ",Legal Aid Payment Crime Higher
Ministry of Justice,LAA,25/11/2015,Crime Higher,Legal Aid Fund,EBR ATTRIDGE LLP,142336541,"93,762.17 ",Legal Aid Payment Crime Higher
Ministry of Justice,LAA,25/11/2015,Crime Higher,Legal Aid Fund,BYRNE & PARTNERS LLP,142342036,"87,023.10 ",Legal Aid Payment Crime Higher
Ministry of Justice,LAA,25/11/2015,Crime Higher,Legal Aid Fund,MARK JONES & PARTNERS,142273024,"27,106.31 ",Legal Aid Payment Crime Higher
Ministry of Justice,LAA,25/11/2015,Crime Higher,Legal Aid Fund,SOMERS & BLAKE,134235990,"29,469.45 ",Legal Aid Payment Crime Higher
Ministry of Justice,LAA,25/11/2015,Crime Higher,Legal Aid Fund,JAMES MURRAY SOLICITORS,142302452,"75,665.00 ",Legal Aid Payment Crime Higher
Ministry of Justice,LAA,25/11/2015,Crime Higher,Legal Aid Fund,MANN & CO SOLICITORS,142288903,"50,906.65 ",Legal Aid Payment Crime Higher
Ministry of Justice,LAA,25/11/2015,Crime Higher,Legal Aid Fund,FARADAYS SOLICITORS LTD,142302447,"89,975.11 ",Legal Aid Payment Crime Higher
Ministry of Justice,LAA,25/11/2015,Crime Higher,Legal Aid Fund,QUINN MELVILLE,142335549,"38,563.92 ",Legal Aid Payment Crime Higher
Ministry of Justice,LAA,25/11/2015,Crime Higher,Legal Aid Fund,QUINN MELVILLE,142335676,"32,509.10 ",Legal Aid Payment Crime Higher
Ministry of Justice,LAA,25/11/2015,Civil Representation,Legal Aid Fund,RASHID & CO,142249854,"71,027.50 ",Legal Aid Payment Civil Representation
Ministry of Justice,LAA,25/11/2015,Crime Higher,Legal Aid Fund,CLARKE KIERNAN LLP,142302481,"107,970.13 ",Legal Aid Payment Crime Higher
Ministry of Justice,LAA,25/11/2015,Civil Representation,Legal Aid Fund,MACHINS SOLICITORS LLP,142229961,"58,354.57 ",Legal Aid Payment Civil Representation
Ministry of Justice,LAA,25/11/2015,Crime Higher,Legal Aid Fund,SBS SOLICITORS LTD,142302347,"89,975.11 ",Legal Aid Payment Crime Higher
Ministry of Justice,LAA,25/11/2015,Civil Representation,Legal Aid Fund,MOTLEY & HOPE,142281454,"40,526.85 ",Legal Aid Payment Civil Representation
Ministry of Justice,LAA,25/11/2015,Crime Higher,Legal Aid Fund,GREENS SOLICITORS LTD,142288672,"32,377.62 ",Legal Aid Payment Crime Higher
Ministry of Justice,LAA,25/11/2015,Crime Higher,Legal Aid Fund,HAYGARTH JONES,142273670,"67,257.96 ",Legal Aid Payment Crime Higher
Ministry of Justice,LAA,25/11/2015,Crime Higher,Legal Aid Fund,WALKERS SOLICITORS LIMITED,142315360,"84,706.24 ",Legal Aid Payment Crime Higher
Ministry of Justice,LAA,25/11/2015,Crime Higher,Legal Aid Fund,STUART MILLER SOLICITORS LTD,142302314,"105,857.75 ",Legal Aid Payment Crime Higher
Ministry of Justice,LAA,25/11/2015,Crime Higher,Legal Aid Fund,STUART MILLER SOLICITORS LTD,142314787,"32,122.31 ",Legal Aid Payment Crime Higher
Ministry of Justice,LAA,25/11/2015,Crime Higher,Legal Aid Fund,T V EDWARDS LLP,142287622,"48,494.48 ",Legal Aid Payment Crime Higher
Ministry of Justice,LAA,25/11/2015,Crime Higher,Legal Aid Fund,EWINGS & CO,142316163,"29,172.76 ",Legal Aid Payment Crime Higher
Ministry of Justice,LAA,25/11/2015,Crime Higher,Legal Aid Fund,LEWIS NEDAS & CO,142273146,"29,232.94 ",Legal Aid Payment Crime Higher
Ministry of Justice,LAA,25/11/2015,Civil Representation,Legal Aid Fund,DAVIS SOLICITORS LLP,142266614,"27,007.68 ",Legal Aid Payment Civil Representation
Ministry of Justice,LAA,25/11/2015,Crime Higher,Legal Aid Fund,B H MOHAMMED,142288269,"27,684.85 ",Legal Aid Payment Crime Higher
Ministry of Justice,LAA,25/11/2015,Crime Higher,Legal Aid Fund,J D SPICER ZEB,142336281,"57,757.96 ",Legal Aid Payment Crime Higher
Ministry of Justice,LAA,25/11/2015,Crime Higher,Legal Aid Fund,J D SPICER ZEB,142303087,"139,210.19 ",Legal Aid Payment Crime Higher
Ministry of Justice,LAA,25/11/2015,Crime Higher,Legal Aid Fund,POWELL SPENCER AND PARTNERS,142315405,"60,682.25 ",Legal Aid Payment Crime Higher
Ministry of Justice,LAA,25/11/2015,Crime Higher,Legal Aid Fund,ALEXANDER JOHNSON ,142302309,"107,574.07 ",Legal Aid Payment Crime Higher
Ministry of Justice,LAA,25/11/2015,Civil Representation,Legal Aid Fund,THE CO-OPERATIVE LEGAL SERVICES LTD,142328433,"25,527.43 ",Legal Aid Payment Civil Representation
Ministry of Justice,LAA,25/11/2015,Crime Higher,Legal Aid Fund,J D SPICER ZEB,142315357,"59,363.51 ",Legal Aid Payment Crime Higher
Ministry of Justice,LAA,25/11/2015,Civil Representation,Legal Aid Fund,JAMES GOODWIN,142119293,"26,346.60 ",Legal Aid Payment Civil Representation
Ministry of Justice,LAA,25/11/2015,Crime Higher,Legal Aid Fund,MARK HEYWOOD QC,142289309,"31,383.65 ",Legal Aid Payment Crime Higher
Ministry of Justice,LAA,25/11/2015,Crime Higher,Legal Aid Fund,CHRISTOPHER J QUINLAN,142288010,"35,535.11 ",Legal Aid Payment Crime Higher
Ministry of Justice,LAA,25/11/2015,Civil Representation,Legal Aid Fund,KATHRYN J HUDSON,142291804,"35,650.80 ",Legal Aid Payment Civil Representation
Ministry of Justice,LAA,25/11/2015,Crime Higher,Legal Aid Fund,JOHN PHILPOTTS,142302900,"30,106.99 ",Legal Aid Payment Crime Higher
Ministry of Justice,LAA,25/11/2015,Civil Representation,Legal Aid Fund,ABIGAIL TURNER,141874445,"31,917.60 ",Legal Aid Payment Civil Representation
Ministry of Justice,LAA,25/11/2015,Crime Higher,Legal Aid Fund,A TOBY HEDWORTH QC,142341507,"44,494.75 ",Legal Aid Payment Crime Higher
Ministry of Justice,LAA,25/11/2015,Crime Higher,Legal Aid Fund,ALTAF SOLICITORS LTD,142302392,"116,008.49 ",Legal Aid Payment Crime Higher
Ministry of Justice,LAA,25/11/2015,Crime Higher,Legal Aid Fund,ALTAF SOLICITORS LTD,142315311,"102,645.09 ",Legal Aid Payment Crime Higher
Ministry of Justice,LAA,25/11/2015,Crime Higher,Legal Aid Fund,HASKELL & CO,142273109,"25,377.77 ",Legal Aid Payment Crime Higher
Ministry of Justice,LAA,25/11/2015,Crime Higher,Legal Aid Fund,M B LAW LTD,142315376,"89,975.11 ",Legal Aid Payment Crime Higher
Ministry of Justice,LAA,25/11/2015,Crime Higher,Legal Aid Fund,SALHAN & CO LTD,142302486,"97,499.64 ",Legal Aid Payment Crime Higher
Ministry of Justice,LAA,25/11/2015,Crime Higher,Legal Aid Fund,BROOKLYN SOLICITORS,142315364,"67,726.69 ",Legal Aid Payment Crime Higher
Ministry of Justice,LAA,25/11/2015,Legal Help,Legal Aid Fund,THE COMMUNITY LAW PARTNERSHIP LTD,142330177,"32,626.80 ",Legal Aid Payment Legal Help
Ministry of Justice,LAA,25/11/2015,Crime Higher,Legal Aid Fund,MORDI & CO,142302458,"101,667.77 ",Legal Aid Payment Crime Higher
Ministry of Justice,LAA,25/11/2015,Crime Higher,Legal Aid Fund,A.M. STRACHAN & CO,142288924,"44,301.07 ",Legal Aid Payment Crime Higher
Ministry of Justice,LAA,25/11/2015,Legal Help,Legal Aid Fund,DIRECT HELP & ADVICE LTD,142329196,"25,649.88 ",Legal Aid Payment Legal Help
Ministry of Justice,LAA,25/11/2015,Crime Higher,Legal Aid Fund,VYMAN SOLICITORS LIMITED,142302494,"107,970.13 ",Legal Aid Payment Crime Higher
Ministry of Justice,LAA,25/11/2015,Crime Higher,Legal Aid Fund,CARTWRIGHT KING SOLICITORS,142336045,"54,082.59 ",Legal Aid Payment Crime Higher
Ministry of Justice,LAA,25/11/2015,Crime Higher,Legal Aid Fund,BURTON COPELAND LLP,142315275,"105,857.75 ",Legal Aid Payment Crime Higher
Ministry of Justice,LAA,25/11/2015,Crime Higher,Legal Aid Fund,RMNJ SOLICITORS ,142302406,"89,975.11 ",Legal Aid Payment Crime Higher
Ministry of Justice,LAA,25/11/2015,Crime Higher,Legal Aid Fund,JOHNSON ASTILLS,142315315,"52,510.50 ",Legal Aid Payment Crime Higher
Ministry of Justice,LAA,25/11/2015,Civil Representation,Legal Aid Fund,MILES & PARTNERS LLP,142293562,"26,359.36 ",Legal Aid Payment Civil Representation
Ministry of Justice,LAA,25/11/2015,Civil Representation,Legal Aid Fund,EDWARD HAYES LLP,142279464,"25,040.28 ",Legal Aid Payment Civil Representation
Ministry of Justice,LAA,25/11/2015,Crime Higher,Legal Aid Fund,HAY & KILNER,142273526,"31,130.59 ",Legal Aid Payment Crime Higher
Ministry of Justice,LAA,25/11/2015,Crime Higher,Legal Aid Fund,HAY & KILNER,142274661,"51,747.20 ",Legal Aid Payment Crime Higher
Ministry of Justice,LAA,25/11/2015,Civil Representation,Legal Aid Fund,QUALITY SOLICITORS CMHT,142339315,"41,768.71 ",Legal Aid Payment Civil Representation
Ministry of Justice,LAA,25/11/2015,Crime Higher,Legal Aid Fund,J. R. JONES SOLICITORS,142302321,"107,574.07 ",Legal Aid Payment Crime Higher
Ministry of Justice,LAA,25/11/2015,Crime Higher,Legal Aid Fund,DAVIES & JONES SOLICITORS,142314857,"43,028.80 ",Legal Aid Payment Crime Higher
Ministry of Justice,LAA,25/11/2015,Civil Representation,Legal Aid Fund,GLAMORGAN LAW LLP,142343042,"38,074.90 ",Legal Aid Payment Civil Representation
Ministry of Justice,LAA,25/11/2015,Crime Higher,Legal Aid Fund,LDJ SOLICITORS,142274344,"40,797.01 ",Legal Aid Payment Crime Higher
Ministry of Justice,LAA,25/11/2015,Crime Higher,Legal Aid Fund,LDJ SOLICITORS,142287706,"40,797.01 ",Legal Aid Payment Crime Higher
Ministry of Justice,LAA,25/11/2015,Civil Representation,Legal Aid Fund,THE WATSON RAMSBOTTOM LIMITED,142291699,"25,130.09 ",Legal Aid Payment Civil Representation
Ministry of Justice,LAA,25/11/2015,Crime Higher,Legal Aid Fund,SAUNDERS SOLICITORS LTD,142289085,"84,329.52 ",Legal Aid Payment Crime Higher
Ministry of Justice,LAA,25/11/2015,Crime Higher,Legal Aid Fund,AMPHLETT LISSIMORE BAGSHAWS LLP,142302337,"78,481.03 ",Legal Aid Payment Crime Higher
Ministry of Justice,LAA,25/11/2015,Crime Higher,Legal Aid Fund,PILLAI & JONES,142301552,"64,829.18 ",Legal Aid Payment Crime Higher
Ministry of Justice,LAA,25/11/2015,Civil Representation,Legal Aid Fund,OSBORNES SOLICITORS LLP,142340208,"25,848.97 ",Legal Aid Payment Civil Representation
Ministry of Justice,LAA,25/11/2015,Crime Higher,Legal Aid Fund,MACKENZIE & CO,142273466,"32,184.01 ",Legal Aid Payment Crime Higher
Ministry of Justice,LAA,25/11/2015,Crime Higher,Legal Aid Fund,BLACKFORDS LLP,142309641,"53,129.61 ",Legal Aid Payment Crime Higher
Ministry of Justice,LAA,25/11/2015,Crime Higher,Legal Aid Fund,THOMAS BOYD WHYTE,142336380,"48,274.70 ",Legal Aid Payment Crime Higher
Ministry of Justice,LAA,25/11/2015,Crime Higher,Legal Aid Fund,QS JACKSON CANTER LTD,142302331,"89,975.11 ",Legal Aid Payment Crime Higher
Ministry of Justice,LAA,25/11/2015,Crime Higher,Legal Aid Fund,T V EDWARDS LLP-ADVOCATE,142288225,"36,487.08 ",Legal Aid Payment Crime Higher
Ministry of Justice,LAA,25/11/2015,Crime Higher,Legal Aid Fund,WILLIAM CLEGG QC,142344103,"87,408.00 ",Legal Aid Payment Crime Higher
Ministry of Justice,LAA,25/11/2015,Crime Higher,Legal Aid Fund,JACQUELINE CAREY,142344102,"43,248.00 ",Legal Aid Payment Crime Higher
Ministry of Justice,LAA,25/11/2015,Civil Representation,Legal Aid Fund,WILLIAM J TYLER,142230048,"77,338.80 ",Legal Aid Payment Civil Representation
Ministry of Justice,LAA,25/11/2015,Civil Representation,Legal Aid Fund,PIERS VON BERG,142230052,"77,862.60 ",Legal Aid Payment Civil Representation
Ministry of Justice,LAA,25/11/2015,Crime Higher,Legal Aid Fund,JAMES FLETCHER,142344111,"43,248.00 ",Legal Aid Payment Crime Higher
Ministry of Justice,LAA,25/11/2015,Crime Higher,Legal Aid Fund,BRIGID M BAILLIE,142302929,"39,984.89 ",Legal Aid Payment Crime Higher
Ministry of Justice,LAA,25/11/2015,Crime Higher,Legal Aid Fund,DAVID P J STERN,142344109,"66,240.00 ",Legal Aid Payment Crime Higher
Ministry of Justice,LAA,25/11/2015,Crime Higher,Legal Aid Fund,G T STEWART SOLICITORS,142315390,"74,237.93 ",Legal Aid Payment Crime Higher
Ministry of Justice,LAA,25/11/2015,Legal Help,Legal Aid Fund,T. A. LAW,142329184,"45,591.60 ",Legal Aid Payment Legal Help
Ministry of Justice,LAA,25/11/2015,Legal Help,Legal Aid Fund,SHELTER.,142330492,"36,712.22 ",Legal Aid Payment Legal Help
Ministry of Justice,LAA,25/11/2015,Civil Representation,Legal Aid Fund,NOWELL MELLER SOLICITORS LTD.,142265858,"74,211.13 ",Legal Aid Payment Civil Representation
Ministry of Justice,LAA,25/11/2015,Crime Higher,Legal Aid Fund,MARY MONSON SOLICITORS,142315305,"64,451.59 ",Legal Aid Payment Crime Higher
Ministry of Justice,LAA,25/11/2015,Crime Higher,Legal Aid Fund,ADVICE WISE SOLICITORS,142273469,"48,494.48 ",Legal Aid Payment Crime Higher
Ministry of Justice,LAA,25/11/2015,Crime Higher,Legal Aid Fund,ESN SOLICITORS,142288959,"41,632.74 ",Legal Aid Payment Crime Higher
Ministry of Justice,LAA,25/11/2015,Crime Higher,Legal Aid Fund,MCGRATH & CO SOLICITORS,142289062,"35,307.67 ",Legal Aid Payment Crime Higher
Ministry of Justice,LAA,25/11/2015,Crime Higher,Legal Aid Fund,MCGRATH & CO SOLICITORS,142335770,"25,900.50 ",Legal Aid Payment Crime Higher
Ministry of Justice,LAA,25/11/2015,Civil Representation,Legal Aid Fund,GARETH WEBB & CO LLP,142342290,"27,926.84 ",Legal Aid Payment Civil Representation
Ministry of Justice,LAA,25/11/2015,Crime Higher,Legal Aid Fund,PETHERBRIDGE BASSRA SOLICITORS LTD,142315395,"105,857.75 ",Legal Aid Payment Crime Higher
Ministry of Justice,LAA,25/11/2015,Legal Help,Legal Aid Fund,ATKINSON & FIRTH,142324427,"26,596.17 ",Legal Aid Payment Legal Help
Ministry of Justice,LAA,25/11/2015,Civil Representation,Legal Aid Fund,GRAHAME STOWE BATESON,142341766,"27,353.67 ",Legal Aid Payment Civil Representation
Ministry of Justice,LAA,25/11/2015,Civil Representation,Legal Aid Fund,RIDLEY & HALL LEGAL LTD,142307508,"88,874.90 ",Legal Aid Payment Civil Representation
Ministry of Justice,LAA,25/11/2015,Crime Higher,Legal Aid Fund,M & M SOLICITORS ,142288740,"81,477.50 ",Legal Aid Payment Crime Higher
Ministry of Justice,LAA,25/11/2015,Crime Higher,Legal Aid Fund,STEPHEN MOORE,142273288,"31,019.99 ",Legal Aid Payment Crime Higher
Ministry of Justice,LAA,25/11/2015,Crime Higher,Legal Aid Fund,BUXTON RYAN & CO,142315440,"89,975.11 ",Legal Aid Payment Crime Higher
Ministry of Justice,LAA,25/11/2015,Crime Higher,Legal Aid Fund,REEDS SOLICITORS LTD,142274605,"40,132.20 ",Legal Aid Payment Crime Higher
Ministry of Justice,LAA,25/11/2015,Civil Representation,Legal Aid Fund,BURY & WALKERS LLP,142280914,"46,630.67 ",Legal Aid Payment Civil Representation
Ministry of Justice,LAA,25/11/2015,Crime Higher,Legal Aid Fund,TATES,142302918,"89,481.85 ",Legal Aid Payment Crime Higher
Ministry of Justice,LAA,25/11/2015,Crime Higher,Legal Aid Fund,NYLAND & BEATTIE,142316282,"26,195.95 ",Legal Aid Payment Crime Higher
Ministry of Justice,LAA,25/11/2015,Crime Higher,Legal Aid Fund,STEPHENSONS SOLICITORS LLP,142335533,"46,440.85 ",Legal Aid Payment Crime Higher
Ministry of Justice,LAA,25/11/2015,Crime Higher,Legal Aid Fund,STEPHENSONS SOLICITORS LLP,142301980,"30,836.52 ",Legal Aid Payment Crime Higher
Ministry of Justice,LAA,25/11/2015,Civil Representation,Legal Aid Fund,EDWARDS DUTHIE,142280341,"26,885.45 ",Legal Aid Payment Civil Representation
Ministry of Justice,LAA,25/11/2015,Civil Representation,Legal Aid Fund,EDWARDS DUTHIE,142305307,"41,942.42 ",Legal Aid Payment Civil Representation
Ministry of Justice,LAA,25/11/2015,Crime Higher,Legal Aid Fund,STOKOE PARTNERSHIP,142287867,"31,530.78 ",Legal Aid Payment Crime Higher
Ministry of Justice,LAA,25/11/2015,Crime Higher,Legal Aid Fund,STOKOE PARTNERSHIP,142288060,"40,228.92 ",Legal Aid Payment Crime Higher
Ministry of Justice,LAA,25/11/2015,Crime Higher,Legal Aid Fund,STOKOE PARTNERSHIP,142302380,"66,995.18 ",Legal Aid Payment Crime Higher
Ministry of Justice,LAA,11/11/2015,Crime Higher,Legal Aid Fund,JEMIMA IVENS,140805445,"-55,127.14 ",Legal Aid Payments
Ministry of Justice,LAA,04/11/2015,Civil Representation,Legal Aid Fund,DEWAR HOGAN,141677101,"-35,571.00 ",Legal Aid Payments
Ministry of Justice,LAA,04/11/2015,Civil Representation,Legal Aid Fund,JOANNE PORTER,142087734,"-43,787.31 ",Legal Aid Payments
Ministry of Justice,LAA,04/11/2015,Civil Representation,Legal Aid Fund,TARYN J LEE QC,141875836,"-41,954.76 ",Legal Aid Payments
Ministry of Justice,LAA,04/11/2015,Civil Representation,Legal Aid Fund,PENELOPE A M HOWE,142045671,"-29,937.60 ",Legal Aid Payments
Ministry of Justice,LAA,04/11/2015,Civil Representation,Legal Aid Fund,JULIE A STATHER,142032446,"-34,615.32 ",Legal Aid Payments
Ministry of Justice,LAA,04/11/2015,Civil Representation,Legal Aid Fund,RIDLEY & HALL LEGAL LTD,142067276,"-29,849.00 ",Legal Aid Payments
Ministry of Justice,LAA,04/11/2015,Civil Representation,Legal Aid Fund,EDWARD HAYES LLP,141960927,"-25,983.00 ",Legal Aid Payments
Ministry of Justice,LAA,04/11/2015,Civil Representation,Legal Aid Fund,VICTORIA J EDMONDS,142100699,"-45,835.20 ",Legal Aid Payments
Ministry of Justice,LAA,04/11/2015,Civil Representation,Legal Aid Fund,VICTORIA J EDMONDS,142100737,"-31,924.80 ",Legal Aid Payments
Ministry of Justice,LAA,04/11/2015,Civil Representation,Legal Aid Fund,LYDIA SLEE,142067800,"-29,332.80 ",Legal Aid Payments
Ministry of Justice,LAA,04/11/2015,Civil Representation,Legal Aid Fund,FRANCES J JUDD,142045669,"-34,927.20 ",Legal Aid Payments
Ministry of Justice,LAA,04/11/2015,Civil Representation,Legal Aid Fund,THE FIRM LLP,142100702,"-48,384.00 ",Legal Aid Payments
Ministry of Justice,LAA,17/11/2015,Civil Representation,Legal Aid Fund,RUSSELL-COOKE LLP,6746607,"-72,903.26 ",Legal Aid Payments
Ministry of Justice,LAA,11/11/2015,Civil Representation,Legal Aid Fund,JENNIFER L SCULLY,140775740,"-25,768.99 ",Legal Aid Payments
Ministry of Justice,LAA,11/11/2015,Civil Representation,Legal Aid Fund,SWITALSKI'S LTD,142131039,"-39,570.53 ",Legal Aid Payments
Ministry of Justice,LAA,11/11/2015,Civil Representation,Legal Aid Fund,CREIGHTON & PARTNERS,142130919,"-27,839.26 ",Legal Aid Payments
Ministry of Justice,LAA,11/11/2015,Civil Representation,Legal Aid Fund,IRWIN MITCHELL LLP,141198680,"-27,454.67 ",Legal Aid Payments
Ministry of Justice,LAA,11/11/2015,Civil Representation,Legal Aid Fund,IRWIN MITCHELL LLP,141636139,"-30,255.76 ",Legal Aid Payments
Ministry of Justice,LAA,11/11/2015,Civil Representation,Legal Aid Fund,SUSAN JENKINS,142171499,"-28,605.69 ",Legal Aid Payments
Ministry of Justice,LAA,11/11/2015,Crime Higher,Legal Aid Fund,STEPHEN N SPENCE,142141946,"-30,756.24 ",Legal Aid Payments
Ministry of Justice,LAA,11/11/2015,Civil Representation,Legal Aid Fund,CONSTANCE M HUGHES,141642159,"-32,689.91 ",Legal Aid Payments
Ministry of Justice,LAA,11/11/2015,Civil Representation,Legal Aid Fund,COOPER NIMMO LIMITED,141962044,"-35,962.57 ",Legal Aid Payments
Ministry of Justice,LAA,11/11/2015,Civil Representation,Legal Aid Fund,CAROLINE A HARTLEY,142130642,"-35,387.00 ",Legal Aid Payments
Ministry of Justice,LAA,11/11/2015,Civil Representation,Legal Aid Fund,KARL J ROWLEY,141651735,"-39,301.20 ",Legal Aid Payments
Ministry of Justice,LAA,18/11/2015,Civil Representation,Legal Aid Fund,RICHARD T HARRISON,142215903,"-36,145.00 ",Legal Aid Payments
Ministry of Justice,LAA,18/11/2015,Civil Representation,Legal Aid Fund,THE FIRM LLP,142227710,"-27,549.64 ",Legal Aid Payments
Ministry of Justice,LAA,18/11/2015,Crime Higher,Legal Aid Fund,FORBES SOLICITORS,142181136,"-44,060.06 ",Legal Aid Payments
Ministry of Justice,LAA,18/11/2015,Crime Higher,Legal Aid Fund,ULLAH LAW,142196433,"-25,638.48 ",Legal Aid Payments
Ministry of Justice,LAA,18/11/2015,Civil Representation,Legal Aid Fund,STEPHENSONS SOLICITORS LLP,142199421,"-25,995.67 ",Legal Aid Payments
Ministry of Justice,LAA,18/11/2015,Civil Representation,Legal Aid Fund,DAVID M BOYD,140185855,"-54,416.85 ",Legal Aid Payments
Ministry of Justice,LAA,18/11/2015,Civil Representation,Legal Aid Fund,NKUMBE EKANEY QC,142231286,"-45,161.10 ",Legal Aid Payments
Ministry of Justice,LAA,18/11/2015,Crime Higher,Legal Aid Fund,RICHARD J WRIGHT QC,142196885,"-27,977.63 ",Legal Aid Payments
Ministry of Justice,LAA,25/11/2015,Civil Representation,Legal Aid Fund,ROBIN S TOLSON QC,142307261,"-43,924.90 ",Legal Aid Payments
Ministry of Justice,LAA,25/11/2015,Crime Higher,Legal Aid Fund,SOMERS & BLAKE,134235970,"-109,275.86 ",Legal Aid Payments
Ministry of Justice,LAA,25/11/2015,Civil Representation,Legal Aid Fund,RASHID & CO,142305268,"-27,896.40 ",Legal Aid Payments
Ministry of Justice,LAA,25/11/2015,Civil Representation,Legal Aid Fund,MOTLEY & HOPE,142305153,"-30,287.52 ",Legal Aid Payments
Ministry of Justice,LAA,25/11/2015,Civil Representation,Legal Aid Fund,ABIGAIL TURNER,141886421,"-32,653.81 ",Legal Aid Payments
Ministry of Justice,LAA,25/11/2015,Civil Representation,Legal Aid Fund,GLAMORGAN LAW LLP,142343052,"-37,617.50 ",Legal Aid Payments
Ministry of Justice,LAA,25/11/2015,Civil Representation,Legal Aid Fund,WILLIAM J TYLER,142305250,"-64,864.80 ",Legal Aid Payments
Ministry of Justice,LAA,25/11/2015,Civil Representation,Legal Aid Fund,PIERS VON BERG,142305249,"-70,734.60 ",Legal Aid Payments
Ministry of Justice,LAA,25/11/2015,Civil Representation,Legal Aid Fund,NOWELL MELLER SOLICITORS LTD,142305229,"-40,704.97 ",Legal Aid Payments
Ministry of Justice,LAA,25/11/2015,Civil Representation,Legal Aid Fund,NOWELL MELLER SOLICITORS LTD,142305240,"-25,693.72 ",Legal Aid Payments
Ministry of Justice,LAA,25/11/2015,Civil Representation,Legal Aid Fund,RIDLEY & HALL LEGAL LTD,142307669,"-87,790.47 ",Legal Aid Payments
Ministry of Justice,LAA,25/11/2015,Civil Representation,Legal Aid Fund,BURY & WALKERS LLP,142280917,"-46,058.32 ",Legal Aid Payments
Ministry of Justice,LAA,25/11/2015,Civil Representation,Legal Aid Fund,EDWARDS DUTHIE,142280356,"-26,327.15 ",Legal Aid Payments
